[Event "*** Titled Tuesday Blitz"]
[Site "Chess.com"]
[Date "2020.11.24"]
[Round "1"]
[White "GianmarcoVaR"]
[Black "Mambastik-Fantastic"]
[Result "1-0"]
[WhiteElo "2603"]
[BlackElo "2302"]
[TimeControl "180+1"]
[EndTime "10:19:37 PST"]
[Termination "GianmarcoVaR won by checkmate"]

1. d4 {[%clk 0:03:00.9]} 1... Nf6 {[%clk 0:02:58.9]} 2. Nf3 {[%clk 0:03:01.4]}
2... g6 {[%clk 0:02:57.8]} 3. Bg5 {[%clk 0:03:01.1]} 3... Bg7 {[%clk 0:02:57.2]}
4. Nbd2 {[%clk 0:03:00.5]} 4... d6 {[%clk 0:02:56.7]} 5. c3 {[%clk 0:02:59.6]}
5... h6 {[%clk 0:02:52.2]} 6. Bh4 {[%clk 0:02:56.5]} 6... O-O {[%clk 0:02:51.4]}
7. e4 {[%clk 0:02:56.1]} 7... Nbd7 {[%clk 0:02:50.8]} 8. Be2 {[%clk 0:02:55]}
8... c5 {[%clk 0:02:50.6]} 9. d5 {[%clk 0:02:54.7]} 9... a6 {[%clk 0:02:45.8]}
10. a4 {[%clk 0:02:53.8]} 10... g5 {[%clk 0:02:41]} 11. Bg3 {[%clk 0:02:53.7]}
11... Nh5 {[%clk 0:02:40.2]} 12. O-O {[%clk 0:02:53.7]} 12... Nxg3 {[%clk
0:02:40.1]} 13. hxg3 {[%clk 0:02:53.7]} 13... e6 {[%clk 0:02:39.1]} 14. dxe6
{[%clk 0:02:47.3]} 14... fxe6 {[%clk 0:02:39.1]} 15. Nc4 {[%clk 0:02:48]} 15...
g4 {[%clk 0:02:28.6]} 16. Nh4 {[%clk 0:02:44.9]} 16... Nf6 {[%clk 0:02:25.5]}
17. Nxd6 {[%clk 0:02:41.9]} 17... Qb6 {[%clk 0:02:25.2]} 18. Nc4 {[%clk
0:02:33.4]} 18... Qc6 {[%clk 0:02:21.6]} 19. e5 {[%clk 0:02:30.8]} 19... Ne4
{[%clk 0:02:12]} 20. Bxg4 {[%clk 0:02:29.5]} 20... b5 {[%clk 0:01:59.8]} 21. Ng6
{[%clk 0:02:01]} 21... Rf7 {[%clk 0:01:27.5]} 22. axb5 {[%clk 0:01:40.5]} 22...
axb5 {[%clk 0:01:26.9]} 23. Qd8+ {[%clk 0:01:38]} 23... Kh7 {[%clk 0:01:26]} 24.
Rxa8 {[%clk 0:01:36.8]} 24... Qxa8 {[%clk 0:01:25.4]} 25. Nb6 {[%clk 0:01:30.9]}
25... Qa2 {[%clk 0:01:15.7]} 26. Ne7 {[%clk 0:01:23]} 26... Bb7 {[%clk
0:01:11.6]} 27. Qg8# {[%clk 0:01:21.7]} 1-0

[Event "*** Titled Tuesday Blitz"]
[Site "Chess.com"]
[Date "2020.11.24"]
[Round "1"]
[White "TurboSteen"]
[Black "Aureliano-Buendia"]
[Result "0-1"]
[WhiteElo "1972"]
[BlackElo "2477"]
[TimeControl "180+1"]
[EndTime "10:19:42 PST"]
[Termination "Aureliano-Buendia won by resignation"]

1. e4 {[%clk 0:02:59]} 1... c5 {[%clk 0:02:57.1]} 2. Nf3 {[%clk 0:02:58.6]} 2...
Nc6 {[%clk 0:02:57.6]} 3. d4 {[%clk 0:02:57.8]} 3... cxd4 {[%clk 0:02:58.5]} 4.
Nxd4 {[%clk 0:02:58.1]} 4... g6 {[%clk 0:02:58.9]} 5. c4 {[%clk 0:02:53.5]} 5...
Nf6 {[%clk 0:02:57.2]} 6. Nc3 {[%clk 0:02:50.7]} 6... d6 {[%clk 0:02:52.1]} 7.
Be2 {[%clk 0:02:48.1]} 7... Nxd4 {[%clk 0:02:51.5]} 8. Qxd4 {[%clk 0:02:45.4]}
8... Bg7 {[%clk 0:02:52.4]} 9. O-O {[%clk 0:02:42.7]} 9... O-O {[%clk
0:02:52.5]} 10. Be3 {[%clk 0:02:40.1]} 10... Ng4 {[%clk 0:02:46.7]} 11. Qd2
{[%clk 0:02:34.1]} 11... Nxe3 {[%clk 0:02:46]} 12. Qxe3 {[%clk 0:02:32.9]} 12...
Be6 {[%clk 0:02:41.3]} 13. f4 {[%clk 0:02:20.9]} 13... Qa5 {[%clk 0:02:36.6]}
14. f5 {[%clk 0:02:18.8]} 14... Bxc3 {[%clk 0:02:21.5]} 15. fxe6 {[%clk
0:02:05.4]} 15... Bxb2 {[%clk 0:02:18.2]} 16. exf7+ {[%clk 0:02:01.4]} 16...
Rxf7 {[%clk 0:02:18.2]} 17. Rxf7 {[%clk 0:01:58.7]} 17... Kxf7 {[%clk
0:02:18.2]} 18. Rf1+ {[%clk 0:01:57.8]} 18... Kg7 {[%clk 0:02:14.9]} 19. Qb3
{[%clk 0:01:46]} 19... Qb6+ {[%clk 0:02:09.9]} 20. Qxb6 {[%clk 0:01:43.8]} 20...
axb6 {[%clk 0:02:10.8]} 21. c5 {[%clk 0:01:39.8]} 21... bxc5 {[%clk 0:02:07.3]}
22. Bc4 {[%clk 0:01:38.3]} 22... Bf6 {[%clk 0:01:58.5]} 23. Rb1 {[%clk
0:01:34.2]} 23... Ra4 {[%clk 0:01:49.3]} 24. Bd5 {[%clk 0:01:32.1]} 24... e6
{[%clk 0:01:44.5]} 25. Rxb7+ {[%clk 0:01:28.5]} 25... Kh6 {[%clk 0:01:44.5]} 26.
Bxe6 {[%clk 0:01:26.2]} 26... Rxe4 {[%clk 0:01:40.1]} 27. Bg8 {[%clk 0:01:23.5]}
27... Bd4+ {[%clk 0:01:35.9]} 28. Kf1 {[%clk 0:01:21.7]} 28... Bg7 {[%clk
0:01:29.6]} 29. a4 {[%clk 0:01:15.6]} 29... Rxa4 {[%clk 0:01:27.9]} 0-1

[Event "*** Titled Tuesday Blitz"]
[Site "Chess.com"]
[Date "2020.11.24"]
[Round "1"]
[White "Beca95"]
[Black "Slovak_fighter2000"]
[Result "1-0"]
[WhiteElo "2924"]
[BlackElo "2454"]
[TimeControl "180+1"]
[EndTime "10:19:53 PST"]
[Termination "Beca95 won by resignation"]

1. d4 {[%clk 0:03:00.3]} 1... Nf6 {[%clk 0:02:58.4]} 2. c4 {[%clk 0:02:59.8]}
2... e6 {[%clk 0:02:58.1]} 3. Nc3 {[%clk 0:02:58.4]} 3... d5 {[%clk 0:02:57.2]}
4. Nf3 {[%clk 0:02:57.7]} 4... c5 {[%clk 0:02:56.9]} 5. cxd5 {[%clk 0:02:49.8]}
5... Nxd5 {[%clk 0:02:57.8]} 6. e4 {[%clk 0:02:48.3]} 6... Nxc3 {[%clk
0:02:57.8]} 7. bxc3 {[%clk 0:02:47.9]} 7... cxd4 {[%clk 0:02:58.7]} 8. cxd4
{[%clk 0:02:48]} 8... Bb4+ {[%clk 0:02:59.2]} 9. Bd2 {[%clk 0:02:47.1]} 9...
Bxd2+ {[%clk 0:02:59.7]} 10. Qxd2 {[%clk 0:02:47.1]} 10... O-O {[%clk
0:03:00.6]} 11. Bc4 {[%clk 0:02:46]} 11... Nd7 {[%clk 0:03:00.5]} 12. O-O {[%clk
0:02:44.8]} 12... b6 {[%clk 0:03:00.8]} 13. Rfe1 {[%clk 0:02:44.6]} 13... Bb7
{[%clk 0:03:01]} 14. Rad1 {[%clk 0:02:43.3]} 14... Nf6 {[%clk 0:02:51.9]} 15.
Qf4 {[%clk 0:02:41.2]} 15... h6 {[%clk 0:02:50.7]} 16. Bb3 {[%clk 0:02:38.8]}
16... Nh5 {[%clk 0:02:46.7]} 17. Qe5 {[%clk 0:02:27.6]} 17... Nf6 {[%clk
0:02:44.8]} 18. h4 {[%clk 0:02:24.9]} 18... Qb8 {[%clk 0:02:38]} 19. d5 {[%clk
0:02:15.5]} 19... Qxe5 {[%clk 0:02:29.6]} 20. Nxe5 {[%clk 0:02:13.8]} 20... exd5
{[%clk 0:02:30.2]} 21. exd5 {[%clk 0:02:11.9]} 21... Rad8 {[%clk 0:02:08.4]} 22.
d6 {[%clk 0:02:11]} 22... Nd7 {[%clk 0:02:01.4]} 23. Nxf7 {[%clk 0:02:04.9]}
23... Rxf7 {[%clk 0:01:44.3]} 24. Re7 {[%clk 0:01:51.7]} 24... Kh7 {[%clk
0:01:37.9]} 25. Rxf7 {[%clk 0:01:48.7]} 25... Nc5 {[%clk 0:01:37.6]} 26. Bc2+
{[%clk 0:01:42.3]} 26... Kg8 {[%clk 0:01:36.4]} 27. Bg6 {[%clk 0:01:41.2]} 27...
Be4 {[%clk 0:01:25.8]} 28. h5 {[%clk 0:01:39.8]} 28... Bb7 {[%clk 0:01:14.9]}
29. Re1 {[%clk 0:01:38]} 29... Bd5 {[%clk 0:01:12.8]} 30. Rfe7 {[%clk
0:01:34.3]} 30... Bc6 {[%clk 0:01:10.8]} 31. Rc7 {[%clk 0:01:31.8]} 31... Bb5
{[%clk 0:01:07.5]} 32. Ree7 {[%clk 0:01:29.4]} 1-0

[Event "*** Titled Tuesday Blitz"]
[Site "Chess.com"]
[Date "2020.11.24"]
[Round "1"]
[White "Gudmundur_Kjartansson"]
[Black "barbara25"]
[Result "1-0"]
[WhiteElo "2551"]
[BlackElo "2245"]
[TimeControl "180+1"]
[EndTime "10:19:54 PST"]
[Termination "Gudmundur_Kjartansson won by resignation"]

1. d4 {[%clk 0:03:00.9]} 1... Nf6 {[%clk 0:02:59.5]} 2. c4 {[%clk 0:03:01.1]}
2... e6 {[%clk 0:02:59.1]} 3. Nf3 {[%clk 0:03:01.5]} 3... b6 {[%clk 0:02:58.3]}
4. g3 {[%clk 0:03:01.7]} 4... Bb7 {[%clk 0:02:58.5]} 5. Bg2 {[%clk 0:03:01.7]}
5... Be7 {[%clk 0:02:59.2]} 6. O-O {[%clk 0:03:02.2]} 6... O-O {[%clk
0:02:59.2]} 7. Re1 {[%clk 0:03:02.8]} 7... d5 {[%clk 0:02:59.2]} 8. cxd5 {[%clk
0:03:02.4]} 8... exd5 {[%clk 0:02:59]} 9. Nc3 {[%clk 0:03:02.9]} 9... Nbd7
{[%clk 0:02:59.5]} 10. Bf4 {[%clk 0:03:02.6]} 10... c5 {[%clk 0:02:57.5]} 11.
Rc1 {[%clk 0:02:51.7]} 11... c4 {[%clk 0:02:57.4]} 12. Ne5 {[%clk 0:02:49.5]}
12... a6 {[%clk 0:02:57.3]} 13. Nxc4 {[%clk 0:02:47.8]} 13... dxc4 {[%clk
0:02:54]} 14. Bxb7 {[%clk 0:02:46.8]} 14... Ra7 {[%clk 0:02:54.4]} 15. Bg2
{[%clk 0:02:45.6]} 15... b5 {[%clk 0:02:52.7]} 16. e4 {[%clk 0:02:44.4]} 16...
h6 {[%clk 0:02:49.1]} 17. e5 {[%clk 0:02:42.7]} 17... Nh7 {[%clk 0:02:47.6]} 18.
h4 {[%clk 0:02:33.5]} 18... Nb6 {[%clk 0:02:47.7]} 19. d5 {[%clk 0:02:30.5]}
19... Bc5 {[%clk 0:02:44.6]} 20. Ne4 {[%clk 0:02:25.1]} 20... Bb4 {[%clk
0:02:41.3]} 21. Nc3 {[%clk 0:02:19.2]} 21... Rd7 {[%clk 0:02:38]} 22. d6 {[%clk
0:02:15.8]} 22... Bxc3 {[%clk 0:02:26.2]} 23. bxc3 {[%clk 0:02:09.8]} 23... Na4
{[%clk 0:02:26.4]} 24. Be4 {[%clk 0:01:55.4]} 24... Nc5 {[%clk 0:02:23.9]} 25.
Bf5 {[%clk 0:01:48.4]} 25... Ne6 {[%clk 0:02:17.5]} 26. Qc2 {[%clk 0:01:45.1]}
26... g6 {[%clk 0:02:16.3]} 27. Bxe6 {[%clk 0:01:42.2]} 27... fxe6 {[%clk
0:02:15.7]} 28. Qxg6+ {[%clk 0:01:36.2]} 28... Kh8 {[%clk 0:02:13]} 29. Bxh6
{[%clk 0:01:30.7]} 29... Rg8 {[%clk 0:02:11.1]} 30. Qxe6 {[%clk 0:01:29.8]}
30... Ra7 {[%clk 0:01:33.4]} 31. Qd5 {[%clk 0:01:19.7]} 31... a5 {[%clk
0:01:21.4]} 32. Qd4 {[%clk 0:01:16.5]} 1-0

[Event "*** Titled Tuesday Blitz"]
[Site "Chess.com"]
[Date "2020.11.24"]
[Round "1"]
[White "woodhy"]
[Black "GigaQuparadze"]
[Result "0-1"]
[WhiteElo "2426"]
[BlackElo "2843"]
[TimeControl "180+1"]
[EndTime "10:19:56 PST"]
[Termination "GigaQuparadze won by resignation"]

1. e4 {[%clk 0:02:15.4]} 1... c5 {[%clk 0:02:57.9]} 2. Nf3 {[%clk 0:02:15.4]}
2... e6 {[%clk 0:02:57.2]} 3. d4 {[%clk 0:02:14.4]} 3... cxd4 {[%clk 0:02:58.1]}
4. Nxd4 {[%clk 0:02:13.3]} 4... a6 {[%clk 0:02:58.6]} 5. c4 {[%clk 0:02:13.4]}
5... Nf6 {[%clk 0:02:58]} 6. Nc3 {[%clk 0:02:14]} 6... Bb4 {[%clk 0:02:58.5]} 7.
Bd3 {[%clk 0:02:12]} 7... Nc6 {[%clk 0:02:58]} 8. Ne2 {[%clk 0:02:10.5]} 8...
Bc5 {[%clk 0:02:53.8]} 9. O-O {[%clk 0:02:09.5]} 9... d6 {[%clk 0:02:52]} 10. a3
{[%clk 0:02:09.6]} 10... O-O {[%clk 0:02:51.3]} 11. b4 {[%clk 0:02:09.4]} 11...
Ba7 {[%clk 0:02:51.4]} 12. Bb2 {[%clk 0:02:09.7]} 12... Bd7 {[%clk 0:02:51]} 13.
Rc1 {[%clk 0:02:09.5]} 13... Ne5 {[%clk 0:02:50.4]} 14. Nf4 {[%clk 0:01:46]}
14... Rc8 {[%clk 0:02:42.4]} 15. Qe2 {[%clk 0:01:44.6]} 15... Nfg4 {[%clk
0:02:39.9]} 16. h3 {[%clk 0:01:41.4]} 16... Qg5 {[%clk 0:02:35.1]} 17. hxg4
{[%clk 0:01:09.3]} 17... Qxf4 {[%clk 0:02:34.5]} 18. c5 {[%clk 0:01:05.6]} 18...
dxc5 {[%clk 0:02:27.8]} 19. g3 {[%clk 0:01:05.7]} 19... Qxg4 {[%clk 0:02:27.2]}
20. Qxg4 {[%clk 0:01:05]} 20... Nxg4 {[%clk 0:02:28.1]} 21. bxc5 {[%clk
0:01:02.6]} 21... Bxc5 {[%clk 0:02:29]} 22. Kg2 {[%clk 0:01:01.4]} 22... Bd4
{[%clk 0:02:24.1]} 23. Be2 {[%clk 0:00:58.2]} 23... Nf6 {[%clk 0:02:22.2]} 24.
Rfd1 {[%clk 0:00:58.2]} 24... Bxc3 {[%clk 0:02:22.4]} 25. Bxc3 {[%clk
0:00:57.2]} 25... Ba4 {[%clk 0:02:21.6]} 26. Rd4 {[%clk 0:00:55.5]} 26... Bc6
{[%clk 0:02:18.3]} 27. f3 {[%clk 0:00:54.9]} 27... Rfd8 {[%clk 0:02:18.4]} 28.
Rcd1 {[%clk 0:00:54.5]} 28... Rxd4 {[%clk 0:02:18.1]} 29. Bxd4 {[%clk 0:00:55]}
29... Nd7 {[%clk 0:02:17.8]} 30. Rc1 {[%clk 0:00:53.8]} 30... e5 {[%clk
0:02:17.2]} 31. Be3 {[%clk 0:00:53.7]} 31... Kf8 {[%clk 0:02:15.8]} 32. Kf2
{[%clk 0:00:54]} 32... Ke7 {[%clk 0:02:15.7]} 33. Bc4 {[%clk 0:00:54.3]} 33...
Bb5 {[%clk 0:02:09.7]} 34. Bxb5 {[%clk 0:00:50.8]} 34... Rxc1 {[%clk 0:02:09.1]}
35. Bxc1 {[%clk 0:00:51.7]} 35... axb5 {[%clk 0:02:09.4]} 36. Ke3 {[%clk
0:00:52.1]} 36... Nb6 {[%clk 0:02:08.5]} 37. Kd3 {[%clk 0:00:51.8]} 37... Kd6
{[%clk 0:02:08.9]} 38. Kc3 {[%clk 0:00:51]} 38... Nc4 {[%clk 0:02:07.6]} 39. a4
{[%clk 0:00:50.8]} 39... Kc5 {[%clk 0:02:06]} 40. axb5 {[%clk 0:00:49.7]} 40...
Kxb5 {[%clk 0:02:06.9]} 41. f4 {[%clk 0:00:49.1]} 41... Kc5 {[%clk 0:02:06.9]}
0-1

[Event "*** Titled Tuesday Blitz"]
[Site "Chess.com"]
[Date "2020.11.24"]
[Round "1"]
[White "THE_PLAYER6"]
[Black "Aleksey_Sorokin"]
[Result "0-1"]
[WhiteElo "2415"]
[BlackElo "2811"]
[TimeControl "180+1"]
[EndTime "10:20:01 PST"]
[Termination "Aleksey_Sorokin won by resignation"]

1. d4 {[%clk 0:03:00.9]} 1... Nf6 {[%clk 0:02:53.5]} 2. c4 {[%clk 0:02:49.8]}
2... g6 {[%clk 0:02:52.5]} 3. Nc3 {[%clk 0:02:48.1]} 3... d5 {[%clk 0:02:52.5]}
4. Nf3 {[%clk 0:02:48]} 4... Bg7 {[%clk 0:02:52.3]} 5. cxd5 {[%clk 0:02:48.4]}
5... Nxd5 {[%clk 0:02:53.2]} 6. e4 {[%clk 0:02:48.1]} 6... Nxc3 {[%clk
0:02:53.6]} 7. bxc3 {[%clk 0:02:48.8]} 7... c5 {[%clk 0:02:54.4]} 8. Bb5+ {[%clk
0:02:47.6]} 8... Bd7 {[%clk 0:02:53]} 9. Be2 {[%clk 0:02:47.5]} 9... Bg4 {[%clk
0:02:48.9]} 10. Rb1 {[%clk 0:02:47.8]} 10... O-O {[%clk 0:02:42.5]} 11. O-O
{[%clk 0:02:38.8]} 11... Qc7 {[%clk 0:02:27.3]} 12. h3 {[%clk 0:02:28.3]} 12...
Bxf3 {[%clk 0:02:26.7]} 13. Bxf3 {[%clk 0:02:29.2]} 13... Rd8 {[%clk 0:02:26.9]}
14. Be3 {[%clk 0:02:28.3]} 14... Nd7 {[%clk 0:02:12.4]} 15. Qb3 {[%clk
0:02:09.5]} 15... Rab8 {[%clk 0:02:06.4]} 16. Rfc1 {[%clk 0:02:08.1]} 16... b5
{[%clk 0:02:04.1]} 17. e5 {[%clk 0:01:59.8]} 17... e6 {[%clk 0:01:57.7]} 18. a4
{[%clk 0:01:53.4]} 18... a6 {[%clk 0:01:53.3]} 19. Qa2 {[%clk 0:01:46.8]} 19...
Qa5 {[%clk 0:01:44.4]} 20. Ra1 {[%clk 0:01:31.1]} 20... b4 {[%clk 0:01:35.9]}
21. cxb4 {[%clk 0:01:30.5]} 21... cxb4 {[%clk 0:01:36.8]} 22. Qb3 {[%clk
0:01:27.5]} 22... Rdc8 {[%clk 0:01:35.4]} 23. Bd2 {[%clk 0:01:22]} 23... Bf8
{[%clk 0:01:29.9]} 24. Bc6 {[%clk 0:01:10]} 24... Qd8 {[%clk 0:01:23.1]} 25. a5
{[%clk 0:01:04]} 25... Nxe5 {[%clk 0:01:21.4]} 26. dxe5 {[%clk 0:00:55.7]} 26...
Qxd2 {[%clk 0:01:22.3]} 27. Bf3 {[%clk 0:00:54.3]} 27... Rxc1+ {[%clk 0:01:18]}
0-1

[Event "*** Titled Tuesday Blitz"]
[Site "Chess.com"]
[Date "2020.11.24"]
[Round "1"]
[White "Bathory44"]
[Black "PawnEatingZombie"]
[Result "1-0"]
[WhiteElo "2557"]
[BlackElo "2256"]
[TimeControl "180+1"]
[EndTime "10:20:05 PST"]
[Termination "Bathory44 won by resignation"]

1. e4 {[%clk 0:03:00.9]} 1... c6 {[%clk 0:02:59.5]} 2. c4 {[%clk 0:03:00.4]}
2... d5 {[%clk 0:02:59.1]} 3. cxd5 {[%clk 0:03:01.3]} 3... cxd5 {[%clk
0:02:59.6]} 4. exd5 {[%clk 0:03:01.9]} 4... Nf6 {[%clk 0:02:59.5]} 5. Qa4+
{[%clk 0:03:01.9]} 5... Nbd7 {[%clk 0:02:57.1]} 6. Nc3 {[%clk 0:03:01.3]} 6...
g6 {[%clk 0:02:54.8]} 7. Nf3 {[%clk 0:03:01]} 7... Bg7 {[%clk 0:02:53.8]} 8. Bc4
{[%clk 0:03:01.4]} 8... O-O {[%clk 0:02:52.6]} 9. d3 {[%clk 0:02:56.7]} 9... Nb6
{[%clk 0:02:42.2]} 10. Qb3 {[%clk 0:02:55.5]} 10... Nxc4 {[%clk 0:02:35.1]} 11.
dxc4 {[%clk 0:02:55]} 11... e6 {[%clk 0:02:35.7]} 12. O-O {[%clk 0:02:49.7]}
12... exd5 {[%clk 0:02:34.7]} 13. cxd5 {[%clk 0:02:50.6]} 13... Bg4 {[%clk
0:02:15.5]} 14. Ne5 {[%clk 0:02:48.1]} 14... Bf5 {[%clk 0:02:10]} 15. Re1 {[%clk
0:02:44.6]} 15... Nd7 {[%clk 0:01:49.2]} 16. Nxd7 {[%clk 0:02:31.2]} 16... Qxd7
{[%clk 0:01:48.6]} 17. Be3 {[%clk 0:02:31.7]} 17... b6 {[%clk 0:01:34.7]} 18.
Rad1 {[%clk 0:02:30.3]} 18... Rac8 {[%clk 0:01:30.9]} 19. Bd4 {[%clk 0:02:29.5]}
19... Rfe8 {[%clk 0:00:56]} 20. Bxg7 {[%clk 0:02:28.2]} 20... Kxg7 {[%clk
0:00:55.6]} 21. Qb4 {[%clk 0:02:24.4]} 21... Rcd8 {[%clk 0:00:45.5]} 22. h3
{[%clk 0:02:15.7]} 22... h5 {[%clk 0:00:44.4]} 23. Qd4+ {[%clk 0:02:10.7]} 23...
Kg8 {[%clk 0:00:43.3]} 24. Re5 {[%clk 0:02:10]} 24... Rxe5 {[%clk 0:00:39.8]}
25. Qxe5 {[%clk 0:02:10.1]} 25... Re8 {[%clk 0:00:39.3]} 26. Qf4 {[%clk
0:02:05.7]} 26... b5 {[%clk 0:00:34.3]} 27. d6 {[%clk 0:02:02.6]} 27... a5
{[%clk 0:00:31.5]} 28. Nd5 {[%clk 0:01:57.6]} 28... Kg7 {[%clk 0:00:17.5]} 29.
Qd4+ {[%clk 0:01:54.9]} 1-0

[Event "*** Titled Tuesday Blitz"]
[Site "Chess.com"]
[Date "2020.11.24"]
[Round "1"]
[White "Arkady_Gitelson"]
[Black "Marina_Chess_Rus"]
[Result "1-0"]
[WhiteElo "2582"]
[BlackElo "2283"]
[TimeControl "180+1"]
[EndTime "10:20:06 PST"]
[Termination "Arkady_Gitelson won on time"]

1. Nf3 {[%clk 0:03:00.9]} 1... d5 {[%clk 0:02:58.5]} 2. g3 {[%clk 0:03:01.8]}
2... Nf6 {[%clk 0:02:57.9]} 3. Bg2 {[%clk 0:03:02.7]} 3... c6 {[%clk 0:02:55.7]}
4. O-O {[%clk 0:03:03.6]} 4... Bg4 {[%clk 0:02:54]} 5. d4 {[%clk 0:03:04.5]}
5... e6 {[%clk 0:02:53.6]} 6. Nbd2 {[%clk 0:03:03.4]} 6... Bd6 {[%clk
0:02:52.2]} 7. Re1 {[%clk 0:03:03.6]} 7... Nbd7 {[%clk 0:02:46.6]} 8. e4 {[%clk
0:03:04]} 8... dxe4 {[%clk 0:02:31.7]} 9. Nxe4 {[%clk 0:03:04.9]} 9... Nxe4
{[%clk 0:02:30.1]} 10. Rxe4 {[%clk 0:03:05.8]} 10... Nf6 {[%clk 0:02:29.9]} 11.
Re1 {[%clk 0:03:05.7]} 11... O-O {[%clk 0:02:18.4]} 12. c3 {[%clk 0:03:05.7]}
12... h6 {[%clk 0:02:17.2]} 13. Qb3 {[%clk 0:03:05.6]} 13... Qb6 {[%clk
0:02:15.8]} 14. Nd2 {[%clk 0:03:05.7]} 14... Bf5 {[%clk 0:02:01.8]} 15. Nc4
{[%clk 0:03:04.3]} 15... Qc7 {[%clk 0:02:01]} 16. Nxd6 {[%clk 0:03:02.8]} 16...
Qxd6 {[%clk 0:02:01.2]} 17. Qxb7 {[%clk 0:03:02.8]} 17... Nd5 {[%clk 0:01:41]}
18. Qa6 {[%clk 0:02:53.3]} 18... Rfb8 {[%clk 0:01:36.3]} 19. Qe2 {[%clk
0:02:49.3]} 19... Qd7 {[%clk 0:01:22.8]} 20. a3 {[%clk 0:02:47.5]} 20... a5
{[%clk 0:01:22.6]} 21. c4 {[%clk 0:02:46.7]} 21... Nb6 {[%clk 0:01:08.2]} 22.
Bf4 {[%clk 0:02:45.3]} 22... Rb7 {[%clk 0:01:00.3]} 23. Rad1 {[%clk 0:02:44.2]}
23... Na4 {[%clk 0:00:53]} 24. Rd2 {[%clk 0:02:39.4]} 24... Rc8 {[%clk
0:00:46.7]} 25. d5 {[%clk 0:02:38.6]} 25... cxd5 {[%clk 0:00:26.9]} 26. cxd5
{[%clk 0:02:39.5]} 26... Ra7 {[%clk 0:00:14.2]} 27. dxe6 {[%clk 0:02:32.4]}
27... Qxe6 {[%clk 0:00:14]} 28. Qd1 {[%clk 0:02:32.5]} 28... Qc4 {[%clk
0:00:11.6]} 29. Rd4 {[%clk 0:02:31.7]} 29... Qc2 {[%clk 0:00:07.5]} 30. Rxa4
{[%clk 0:02:25.4]} 30... Qxd1 {[%clk 0:00:05.1]} 31. Rxd1 {[%clk 0:02:26.3]}
31... Bc2 {[%clk 0:00:05.5]} 32. Rc1 {[%clk 0:02:26.5]} 32... Rc5 {[%clk
0:00:02.5]} 33. Rd4 {[%clk 0:02:20.3]} 1-0

[Event "*** Titled Tuesday Blitz"]
[Site "Chess.com"]
[Date "2020.11.24"]
[Round "1"]
[White "Mr_Heisenberg13"]
[Black "annacramling"]
[Result "1-0"]
[WhiteElo "2489"]
[BlackElo "2056"]
[TimeControl "180+1"]
[EndTime "10:20:09 PST"]
[Termination "Mr_Heisenberg13 won by resignation"]

1. e4 {[%clk 0:02:58.8]} 1... c5 {[%clk 0:02:59.1]} 2. Nf3 {[%clk 0:02:53.8]}
2... Nc6 {[%clk 0:02:56.3]} 3. d4 {[%clk 0:02:53.1]} 3... cxd4 {[%clk
0:02:56.3]} 4. Nxd4 {[%clk 0:02:54]} 4... Nf6 {[%clk 0:02:56.9]} 5. Nc3 {[%clk
0:02:45]} 5... e6 {[%clk 0:02:51.4]} 6. Ndb5 {[%clk 0:02:43.5]} 6... d6 {[%clk
0:02:49.9]} 7. Bf4 {[%clk 0:02:39.8]} 7... e5 {[%clk 0:02:50.1]} 8. Bg5 {[%clk
0:02:39.8]} 8... a6 {[%clk 0:02:50.6]} 9. Na3 {[%clk 0:02:38.1]} 9... b5 {[%clk
0:02:50.6]} 10. Bxf6 {[%clk 0:02:38.3]} 10... gxf6 {[%clk 0:02:48.5]} 11. Nd5
{[%clk 0:02:38.4]} 11... f5 {[%clk 0:02:47.8]} 12. g3 {[%clk 0:02:38.2]} 12...
Bg7 {[%clk 0:02:44.3]} 13. Bg2 {[%clk 0:02:37.2]} 13... O-O {[%clk 0:02:44.2]}
14. exf5 {[%clk 0:02:35.3]} 14... Bxf5 {[%clk 0:02:42.4]} 15. Ne3 {[%clk
0:02:35.5]} 15... Be6 {[%clk 0:02:42]} 16. Bxc6 {[%clk 0:02:30]} 16... Rc8
{[%clk 0:02:35.9]} 17. Bd5 {[%clk 0:02:28.6]} 17... b4 {[%clk 0:02:31.4]} 18.
Nac4 {[%clk 0:02:28.1]} 18... Rc5 {[%clk 0:02:13.5]} 19. Bxe6 {[%clk 0:02:25]}
19... fxe6 {[%clk 0:02:14.4]} 20. Qxd6 {[%clk 0:02:23.8]} 20... Qc8 {[%clk
0:01:55]} 21. b3 {[%clk 0:02:08.7]} 21... e4 {[%clk 0:01:52]} 22. Rd1 {[%clk
0:02:03]} 22... Bc3+ {[%clk 0:01:50.7]} 23. Ke2 {[%clk 0:02:03.3]} 23... Rf7
{[%clk 0:01:11.1]} 24. Qd8+ {[%clk 0:02:00.8]} 24... Qxd8 {[%clk 0:01:07.6]} 25.
Rxd8+ {[%clk 0:02:01.7]} 25... Kg7 {[%clk 0:01:08.1]} 26. Rhd1 {[%clk
0:02:01.2]} 26... Rh5 {[%clk 0:00:58.4]} 27. h4 {[%clk 0:01:57.5]} 27... Rh6
{[%clk 0:00:51.9]} 28. R1d7 {[%clk 0:01:55.5]} 28... Rf6 {[%clk 0:00:47.9]} 29.
Rxf7+ {[%clk 0:01:55.3]} 29... Rxf7 {[%clk 0:00:48.8]} 30. Rd6 {[%clk
0:01:54.1]} 30... Rf6 {[%clk 0:00:41.1]} 31. Rxa6 {[%clk 0:01:51.6]} 31... Kg6
{[%clk 0:00:31.7]} 32. g4 {[%clk 0:01:48.3]} 32... h5 {[%clk 0:00:31]} 33. g5
{[%clk 0:01:47.1]} 1-0

[Event "*** Titled Tuesday Blitz"]
[Site "Chess.com"]
[Date "2020.11.24"]
[Round "1"]
[White "Tsyhanchuk_Stanislav"]
[Black "Nikolaj_6"]
[Result "0-1"]
[WhiteElo "2276"]
[BlackElo "2573"]
[TimeControl "180+1"]
[EndTime "10:20:11 PST"]
[Termination "Nikolaj_6 won on time"]

1. e4 {[%clk 0:03:00.9]} 1... c5 {[%clk 0:02:59.4]} 2. Nf3 {[%clk 0:03:01]} 2...
e6 {[%clk 0:02:59.8]} 3. d4 {[%clk 0:03:01.3]} 3... cxd4 {[%clk 0:03:00.7]} 4.
Nxd4 {[%clk 0:03:01.8]} 4... Nc6 {[%clk 0:03:00.4]} 5. Nc3 {[%clk 0:03:02.2]}
5... a6 {[%clk 0:03:00.6]} 6. Be3 {[%clk 0:03:00.1]} 6... Qc7 {[%clk 0:03:00.3]}
7. Be2 {[%clk 0:02:50.9]} 7... Nf6 {[%clk 0:02:59.9]} 8. O-O {[%clk 0:02:50.5]}
8... Be7 {[%clk 0:02:56.9]} 9. Qd2 {[%clk 0:02:42.6]} 9... b5 {[%clk 0:02:55.1]}
10. f3 {[%clk 0:02:31.8]} 10... Bb7 {[%clk 0:02:52]} 11. Rad1 {[%clk 0:02:21.1]}
11... O-O {[%clk 0:02:49.8]} 12. Kh1 {[%clk 0:02:10.2]} 12... Ne5 {[%clk
0:02:48.1]} 13. f4 {[%clk 0:02:01.5]} 13... Nc4 {[%clk 0:02:45.4]} 14. Bxc4
{[%clk 0:02:00.6]} 14... Qxc4 {[%clk 0:02:44.7]} 15. Qd3 {[%clk 0:01:15.3]}
15... Rac8 {[%clk 0:02:34.3]} 16. f5 {[%clk 0:00:57.3]} 16... b4 {[%clk
0:02:30.5]} 17. e5 {[%clk 0:00:50.5]} 17... bxc3 {[%clk 0:02:28.5]} 18. exf6
{[%clk 0:00:50]} 18... Bxf6 {[%clk 0:02:27.1]} 19. fxe6 {[%clk 0:00:24.8]} 19...
fxe6 {[%clk 0:02:24]} 20. bxc3 {[%clk 0:00:06.3]} 20... Qxc3 {[%clk 0:02:20]}
21. Qe2 {[%clk 0:00:06.8]} 21... Qc4 {[%clk 0:02:14.1]} 22. Qg4 {[%clk
0:00:02.6]} 22... e5 {[%clk 0:02:05.1]} 23. Qxd7 {[%clk 0:00:02]} 23... exd4
{[%clk 0:01:58.4]} 24. Qxb7 {[%clk 0:00:01.9]} 24... dxe3 {[%clk 0:01:58.1]} 25.
Qd7 {[%clk 0:00:01.1]} 25... e2 {[%clk 0:01:57]} 0-1